fUST/lending_fUST_20241107
["ID","MTS","AMOUNT","RATE_DAILY","PERIOD"]
[341533568,1730964640713,-500.0,0.00031852,2]
[341533570,1730964640722,-524.29055363,0.00031852,2]
[341533571,1730964640732,-452.35761289,0.00031852,2]
[341533572,1730964640743,-513.55831829,0.00031852,2]
[341533573,1730964640753,-503.23851465,0.00031852,2]
[341533574,1730964640763,-508.72552695,0.00031852,2]
[341533575,1730964640772,-600.44291715,0.00031852,2]
[341533576,1730964640782,-638.41034758,0.00031852,2]
[341533577,1730964640791,-511.63305789,0.00031852,2]
[341533578,1730964640801,-515.88640591,0.00031852,2]
[341533579,1730964640810,-500.0,0.00031871,2]
[341533580,1730964640820,-500.0,0.00031872,2]
[341533581,1730964640830,-256.29444935,0.00031873,5]
[341533582,1730964640839,-500.0,0.00031873,5]
[341533583,1730964640848,-500.0,0.00031873,2]
[341533584,1730964640858,-162.45617148,0.00031873,5]
[341533585,1730964640868,-595.88547956,0.00031873,5]
[341533586,1730964640877,-500.0,0.00031873,2]
[341533587,1730964640886,-500.0,0.00031878,2]
[341533588,1730964640896,-95483.129086,0.0003188,2]
[341533589,1730964640906,-1081.25250021,0.00031887,2]
[341533590,1730964640915,-500.0,0.00031889,2]
[341533591,1730964640924,-500.0,0.00031899,2]
[341533592,1730964640934,-543.18528652,0.00031899,2]
[341533593,1730964640945,-151.0,0.000319,7]
[341533594,1730964640955,-151.0,0.000319,7]
[341533595,1730964640966,-150.112233,0.000319,10]
[341533596,1730964640976,-150.112233,0.000319,17]
[341533597,1730964640985,-150.112245,0.000319,14]
[341533598,1730964640994,-151.0,0.000319,7]
[341533599,1730964641005,-151.0,0.000319,7]
[341533600,1730964641014,-74108.07625071,0.000319,2]
[341533601,1730964641088,-705.94,0.00027,2]
[341533602,1730964641097,-705.94,0.0003,2]
[341533603,1730964641106,-500.0,0.00031577,2]
[341533604,1730964641195,-500.0,0.00031851,2]
[341533605,1730964641205,-2874.94279854,0.000319,2]
[341533638,1730964644263,-1169.27083333,0.00027223,2]
[341533639,1730964644274,-649.36,0.00031576,2]
[341533640,1730964644286,-649.36,0.0003185,2]
[341533641,1730964644296,-500.0,0.00031873,5]
[341533642,1730964644306,-5385.61247224,0.000319,2]
[341533655,1730964660866,331.5392934,0.0001,2]
[341533660,1730964778715,633.94211147,5e-05,14]
[341533662,1730964828301,1169.27083333,0.0002084,2]
[341533666,1730965038335,872.4,0.0002084,2]
[341533671,1730965263447,162.567586,0.00013973,2]
[341533673,1730965440950,1169.27083333,0.0002084,2]
[341534167,1730965844686,-1169.27083333,0.00024568,2]
[341534169,1730965844697,-564.75,0.00027,2]
[341534171,1730965844707,-1715.97916667,0.00028168,2]
[341534180,1730965844789,-2081.19952317,0.00028168,2]
[341534215,1730965845126,-4367.56522686,0.00028168,2]
[341534217,1730965845137,-564.75,0.00029,2]
[341534219,1730965845148,-454.5221103,0.0003074,30]
[341534221,1730965845158,-564.75,0.00031,2]
[341534223,1730965845169,-500.0,0.00031499,2]
[341534226,1730965845179,-500.0,0.00031499,2]
[341534228,1730965845189,-500.0,0.00031499,2]
[341534230,1730965845198,-503.00241167,0.00031499,2]
[341534232,1730965845207,-504.28752548,0.00031499,2]
[341534234,1730965845217,-501.57500681,0.00031499,2]
[341534236,1730965845227,-635.92,0.00031499,2]
[341534238,1730965845237,-500.0,0.00031499,2]
[341534240,1730965845246,-513.76803958,0.00031499,2]
[341534242,1730965845256,-500.0,0.00031499,2]
[341534243,1730965845265,-508.05801133,0.00031499,2]
[341534245,1730965845275,-160.90119693,0.00031499,2]
[341534247,1730965845285,-500.0,0.00031499,2]
[341534249,1730965845295,-500.0,0.00031499,2]
[341534251,1730965845305,-500.0,0.00031499,2]
[341534254,1730965845315,-520.61,0.00031499,2]
[341534256,1730965845326,-500.0,0.00031499,2]
[341534258,1730965845336,-500.0,0.00031499,2]
[341534260,1730965845346,-509.43836124,0.00031499,2]
[341534262,1730965845356,-237.5872132,0.00031499,2]
[341534264,1730965845365,-191.72804432,0.00031499,2]
[341534265,1730965845375,-500.0,0.00031499,2]
[341534267,1730965845385,-507.08131074,0.00031499,2]
[341534270,1730965845395,-500.0,0.00031499,2]
[341534272,1730965845406,-500.0,0.00031499,2]
[341534274,1730965845417,-200.0,0.00031499,2]
[341534276,1730965845428,-503.86920275,0.00031499,2]
[341534278,1730965845445,-500.0,0.00031499,2]
[341534280,1730965845456,-500.0,0.00031499,2]
[341534283,1730965845468,-500.0,0.00031499,2]
[341534285,1730965845479,-500.0,0.00031499,2]
[341534287,1730965845488,-500.0,0.00031499,2]
[341534289,1730965845499,-504.2219945,0.00031499,2]
[341534290,1730965845508,-500.0,0.00031499,2]
[341534292,1730965845517,-500.0,0.00031499,2]
[341534294,1730965845527,-500.0,0.00031499,2]
[341534296,1730965845536,-500.0,0.00031499,2]
[341534298,1730965845546,-565.76,0.00031499,2]
[341534300,1730965845555,-500.0,0.00031499,2]
[341534302,1730965845564,-500.0,0.00031499,2]
[341534304,1730965845574,-622.25,0.00031499,2]
[341534306,1730965845585,-513.72956722,0.00031499,2]
[341534308,1730965845594,-500.0,0.00031499,2]
[341534310,1730965845604,-500.0,0.00031499,2]
[341534312,1730965845614,-500.0,0.00031499,2]
[341534314,1730965845624,-265.22901077,0.00031499,2]
[341534316,1730965845635,-31635.0,0.000315,2]
[341534318,1730965845644,-585.23295127,0.000315,7]
[341534320,1730965845655,-508.47452684,0.00031576,2]
[341534322,1730965845665,-500.0,0.00031576,2]
[341534324,1730965845675,-500.0,0.00031576,2]
[341534326,1730965845685,-500.0,0.00031576,2]
[341534328,1730965845694,-500.0,0.00031576,2]
[341534330,1730965845706,-500.0,0.00031576,2]
[341534332,1730965845716,-500.0,0.00031576,2]
[341534334,1730965845726,-500.0,0.00031576,2]
[341534337,1730965845745,-250.0,0.00031576,2]
[341534339,1730965845756,-603.17231861,0.00031576,2]
[341534341,1730965845767,-500.0,0.00031576,2]
[341534342,1730965845777,-500.0,0.00031576,2]
[341534343,1730965845791,-502.85535975,0.00031576,2]
[341534344,1730965845801,-511.50323428,0.00031576,2]
[341534345,1730965845813,-512.02193098,0.00031576,2]
[341534346,1730965845827,-500.0,0.00031576,2]
[341534347,1730965845839,-500.0,0.00031576,2]
[341534349,1730965845850,-500.0,0.00031576,2]
[341534351,1730965845862,-505.41906881,0.00031576,2]
[341534353,1730965845873,-500.0,0.00031576,2]
[341534355,1730965845884,-500.0,0.00031576,2]
[341534357,1730965845894,-269.03531734,0.00031576,2]
[341534360,1730965845908,-194.65301787,0.00031576,2]
[341534361,1730965845917,-500.0,0.00031576,2]
[341534363,1730965845927,-503.07145176,0.00031576,2]
[341534365,1730965845937,-502.06194082,0.00031576,2]
[341534367,1730965845946,-500.0,0.00031576,2]
[341534370,1730965845957,-509.1314883,0.00031576,2]
[341534372,1730965845968,-500.0,0.00031576,2]
[341534375,1730965845983,-506.91529399,0.00031576,2]
[341534378,1730965845993,-500.0,0.00031576,2]
[341534380,1730965846003,-507.06024906,0.00031576,2]
[341534383,1730965846013,-500.0,0.00031576,2]
[341534386,1730965846023,-374.17265625,0.00031576,2]
[341534388,1730965846034,-500.0,0.00031576,2]
[341534390,1730965846045,-509.52860741,0.00031576,2]
[341534392,1730965846055,-500.0,0.00031576,2]
[341534394,1730965846065,-500.0,0.00031576,2]
[341534396,1730965846076,-500.0,0.00031576,2]
[341534398,1730965846087,-502.334047,0.00031576,2]
[341534400,1730965846097,-500.0,0.00031576,2]
[341534402,1730965846107,-500.0,0.00031576,2]
[341534404,1730965846118,-500.0,0.00031576,2]
[341534406,1730965846128,-246.16443954,0.00031577,2]
[341534408,1730965846137,-512.84725117,0.00031577,2]
[341534410,1730965846147,-311.3565044,0.00031616,30]
[341534412,1730965846158,-635.92,0.00031773,2]
[341534414,1730965846168,-500.0,0.00031773,2]
[341534416,1730965846178,-500.0,0.00031773,2]
[341534418,1730965846189,-520.61,0.00031773,2]
[341534420,1730965846199,-500.0,0.00031773,2]
[341534422,1730965846209,-500.0,0.00031773,2]
[341534424,1730965846219,-581.19243832,0.00031773,2]
[341534426,1730965846231,-500.0,0.00031773,2]
[341534428,1730965846242,-500.0,0.00031773,2]
[341534430,1730965846251,-500.0,0.00031773,2]
[341534432,1730965846262,-500.0,0.00031773,2]
[341534434,1730965846272,-565.76,0.00031773,2]
[341534436,1730965846283,-622.25,0.00031773,2]
[341534438,1730965846294,-500.0,0.00031773,2]
[341534440,1730965846305,-500.0,0.00031773,2]
[341534442,1730965846316,-166.121,0.0003182,2]
[341534444,1730965846328,-500.0,0.0003183,2]
[341534446,1730965846337,-472.26,0.00031839,10]
[341534448,1730965846348,-393.55,0.00031839,10]
[341534450,1730965846358,-500.0,0.00031849,2]
[341534452,1730965846368,-528.63880998,0.00031849,2]
[341534454,1730965846379,-500.0,0.00031849,2]
[341534456,1730965846389,-500.0,0.00031849,2]
[341534458,1730965846399,-500.0,0.00031849,2]
[341534460,1730965846410,-500.0,0.00031849,2]
[341534462,1730965846420,-500.0,0.00031849,2]
[341534464,1730965846430,-500.0,0.00031849,2]
[341534466,1730965846440,-500.0,0.00031849,2]
[341534468,1730965846451,-500.0,0.00031849,2]
[341534470,1730965846461,-500.0,0.00031849,2]
[341534472,1730965846472,-500.0,0.00031849,2]
[341534474,1730965846483,-500.0,0.00031849,2]
[341534476,1730965846493,-559.51042987,0.0003185,2]
[341534478,1730965846503,-500.0,0.0003185,2]
[341534480,1730965846513,-500.0,0.0003185,2]
[341534482,1730965846523,-282.0,0.0003185,2]
[341534484,1730965846532,-500.0,0.0003185,2]
[341534486,1730965846543,-500.0,0.0003185,2]
[341534488,1730965846553,-250.0,0.0003185,2]
[341534490,1730965846563,-500.0,0.0003185,2]
[341534492,1730965846573,-500.0,0.0003185,2]
[341534494,1730965846583,-973.12725018,0.0003189,2]
[341534496,1730965846593,-181.87860816,0.00031899,2]
[341534498,1730965846604,-500.0,0.00031899,2]
[341534512,1730965846747,-150.0,0.000319,9]
[341534514,1730965846771,-500.0,0.00031973,5]
[341534518,1730965846792,-553.1656997,0.00031973,5]
[341534520,1730965846805,-297.94474182,0.00031989,2]
[341534522,1730965846815,-168167.41830156,0.0003199,2]
[341536359,1730966052926,1169.27083333,0.0002084,2]
[341536362,1730966437866,162.567586,0.00013973,2]
[341536364,1730966664253,1169.27083333,0.00020841,2]
[341536365,1730966664887,223.0,0.0002084,4]
[341536366,1730966681732,224.62153266,0.0002084,5]
[341536374,1730966847014,94435.0,0.00032366,120]
[341536381,1730966982339,164.408277,0.00013973,2]
[341536444,1730967032618,-388.3650477,0.00024568,2]
[341536551,1730967038724,-780.90578563,0.00024568,2]
[341536553,1730967038734,-166.666666,0.00027146,2]
[341536555,1730967038743,-245.0,0.00031,14]
[341536557,1730967038752,-245.0,0.00031,30]
[341536559,1730967038761,-150.0,0.00031019,2]
[341536561,1730967038775,-500.0,0.00031497,2]
[341536563,1730967038785,-500.0,0.00031497,2]
[341536565,1730967038794,-500.0,0.00031498,2]
[341536567,1730967038803,-500.0,0.00031498,2]
[341536569,1730967038812,-500.0,0.00031498,2]
[341536571,1730967038821,-292.92979674,0.00031498,2]
[341536573,1730967038830,-501.56857057,0.00031498,2]
[341536575,1730967038839,-500.0,0.00031498,2]
[341536577,1730967038848,-500.0,0.00031498,2]
[341536579,1730967038859,-500.0,0.00031498,2]
[341536581,1730967038868,-500.0,0.00031498,2]
[341536583,1730967038878,-1006.08853825,0.00031498,5]
[341536585,1730967038889,-501.87522203,0.00031498,2]
[341536588,1730967038899,-500.0,0.00031498,2]
[341536589,1730967038908,-500.0,0.00031498,2]
[341536591,1730967038917,-500.0,0.00031498,2]
[341536593,1730967038926,-512.11714021,0.00031498,2]
[341536595,1730967038935,-509.170581,0.00031498,2]
[341536597,1730967038944,-500.0,0.00031498,2]
[341536599,1730967038953,-500.0,0.00031498,2]
[341536601,1730967038963,-500.0,0.00031498,2]
[341536603,1730967038972,-404.54251095,0.00031498,2]
[341536605,1730967038981,-500.0,0.00031498,2]
[341536607,1730967038990,-509.64555733,0.00031498,2]
[341536609,1730967039000,-500.0,0.00031498,2]
[341536611,1730967039010,-666.25,0.00031498,2]
[341536613,1730967039022,-500.0,0.00031498,2]
[341536615,1730967039033,-500.0,0.00031498,2]
[341536617,1730967039043,-500.0,0.00031498,2]
[341536619,1730967039056,-500.0,0.00031498,2]
[341536621,1730967039065,-7.07760414,0.00031498,2]
[341536624,1730967039088,-405.56735736,0.00031498,2]
[341536626,1730967039105,-87.3550385,0.00031498,2]
[341536628,1730967039115,-243.5569978,0.00031498,2]
[341536630,1730967039133,-546.0330022,0.00031498,2]
[341536632,1730967039142,-507.53258036,0.00031498,2]
[341536634,1730967039153,-500.0,0.00031498,2]
[341536636,1730967039162,-500.0,0.00031498,2]
[341536638,1730967039172,-500.0,0.00031498,2]
[341536640,1730967039181,-500.0,0.00031498,2]
[341536642,1730967039190,-563.71,0.00031498,2]
[341536644,1730967039200,-500.0,0.00031498,2]
[341536646,1730967039209,-500.0,0.00031498,2]
[341536648,1730967039219,-301.68,0.00031498,2]
[341536650,1730967039228,-500.0,0.00031498,2]
[341536652,1730967039237,-500.0,0.00031498,2]
[341536654,1730967039247,-250.0,0.00031498,2]
[341536657,1730967039258,-570.39,0.00031498,2]
[341536658,1730967039269,-711.58597536,0.00031499,7]
[341536660,1730967039278,-501.62842851,0.00031499,2]
[341536662,1730967039287,-513.81064512,0.00031499,2]
[341536664,1730967039296,-500.000001,0.00031499,2]
[341536665,1730967039307,-502.86083641,0.00031499,2]
[341536666,1730967039317,-500.0,0.00031499,2]
[341536667,1730967039328,-500.0,0.00031499,2]
[341536668,1730967039337,-508.57678009,0.00031499,2]
[341536669,1730967039346,-500.0,0.00031499,2]
[341536670,1730967039355,-511.06353547,0.00031499,2]
[341536671,1730967039365,-500.0,0.00031499,2]
[341536672,1730967039376,-500.0,0.00031499,2]
[341536673,1730967039385,-505.73837133,0.00031499,2]
[341536674,1730967039395,-503.10534214,0.00031499,2]
[341536675,1730967039405,-507.6924612,0.00031499,2]
[341536676,1730967039415,-500.0,0.00031499,2]
[341536677,1730967039425,-500.0,0.00031499,2]
[341536678,1730967039435,-500.0,0.00031499,2]
[341536679,1730967039446,-500.0,0.00031499,2]
[341536680,1730967039456,-500.0,0.00031499,2]
[341536681,1730967039467,-500.0,0.00031499,2]
[341536682,1730967039478,-500.0,0.00031499,2]
[341536683,1730967039489,-503.93159235,0.00031499,2]
[341536684,1730967039501,-500.0,0.00031499,2]
[341536685,1730967039512,-500.0,0.00031499,2]
[341536686,1730967039526,-505.35823042,0.00031499,2]
[341536687,1730967039535,-500.0,0.00031499,2]
[341536688,1730967039545,-500.0,0.00031499,2]
[341536690,1730967039554,-505.70038605,0.00031499,2]
[341536692,1730967039563,-500.0,0.00031499,2]
[341536694,1730967039574,-500.0,0.00031499,2]
[341536696,1730967039583,-500.0,0.00031499,2]
[341536698,1730967039594,-500.0,0.00031499,2]
[341536700,1730967039604,-500.0,0.00031499,2]
[341536702,1730967039614,-1000.0,0.00031506,30]
[341536704,1730967039623,-500.0,0.00031575,2]
[341536706,1730967039633,-392.35255391,0.00031575,2]
[341536810,1730967040617,-107.64744609,0.00031575,2]
[341536813,1730967040629,-500.0,0.00031576,2]
[341536815,1730967040640,-500.0,0.00031629,5]
[341536817,1730967040651,-166.075,0.0003176,2]
[341536819,1730967040663,-500.0,0.00031771,2]
[341536821,1730967040673,-500.0,0.00031771,2]
[341536824,1730967040685,-500.0,0.00031772,2]
[341536826,1730967040696,-500.0,0.00031772,2]
[341536828,1730967040707,-666.25,0.00031772,2]
[341536830,1730967040718,-500.0,0.00031772,2]
[341536832,1730967040728,-500.0,0.00031772,2]
[341536834,1730967040738,-500.0,0.00031772,2]
[341536836,1730967040748,-500.0,0.00031772,2]
[341536839,1730967040758,-500.0,0.00031772,2]
[341536841,1730967040771,-789.59,0.00031772,2]
[341536843,1730967040781,-500.0,0.00031772,2]
[341536845,1730967040791,-500.0,0.00031772,2]
[341536847,1730967040801,-500.0,0.00031772,2]
[341536849,1730967040812,-500.0,0.00031772,2]
[341536851,1730967040823,-563.71,0.00031772,2]
[341536854,1730967040835,-500.0,0.00031772,2]
[341536856,1730967040846,-500.0,0.00031772,2]
[341536858,1730967040856,-500.0,0.00031772,2]
[341536860,1730967040866,-500.0,0.00031772,2]
[341536862,1730967040876,-250.0,0.00031772,2]
[341536864,1730967040885,-570.39,0.00031772,2]
[341536866,1730967040894,-500.0,0.00031773,2]
[341536868,1730967040905,-500.0,0.00031773,2]
[341536870,1730967040916,-500.0,0.00031773,2]
[341536872,1730967040928,-500.0,0.00031773,2]
[341536874,1730967040938,-285.58112621,0.00031849,2]
[341536876,1730967040948,-310.04656523,0.00031849,2]
[341536879,1730967040959,-500.0,0.00031849,2]
[341536881,1730967040968,-257.29,0.000319,120]
[341536883,1730967040978,-181.87860815,0.00031989,2]
[341536885,1730967040987,-1000.0,0.00032,120]
[341536887,1730967040998,-11526.10153899,0.00032,5]
[341536889,1730967041008,-3905.47244219,0.00032,3]
[341536891,1730967041021,-840.82072669,0.00032019,2]
[341536893,1730967041031,-736.183897,0.00032019,2]
[341536895,1730967041041,-195.519108,0.00032019,2]
[341536897,1730967041054,-500.0,0.00032045,2]
[341536899,1730967041063,-500.0,0.00032046,2]
[341536901,1730967041075,-500.0,0.00032046,2]
[341536903,1730967041085,-666.25,0.00032046,2]
[341536905,1730967041097,-500.0,0.00032046,2]
[341536907,1730967041106,-500.0,0.00032046,2]
[341536909,1730967041115,-500.0,0.00032046,2]
[341536910,1730967041126,-500.0,0.00032046,2]
[341536911,1730967041135,-500.0,0.00032046,2]
[341536912,1730967041144,-789.59,0.00032046,2]
[341536913,1730967041154,-500.0,0.00032046,2]
[341536914,1730967041163,-500.0,0.00032046,2]
[341536915,1730967041172,-500.0,0.00032046,2]
[341536916,1730967041182,-500.0,0.00032046,2]
[341536917,1730967041192,-326.43354149,0.00032046,2]
[341537205,1730967044428,-237.27645851,0.00032046,2]
[341537207,1730967044438,-607.2393598,0.00032046,2]
[341537209,1730967044449,-500.0,0.00032046,2]
[341537211,1730967044459,-500.0,0.00032046,2]
[341537213,1730967044469,-365.87232589,0.00032046,2]
[341537215,1730967044479,-570.39,0.00032046,2]
[341537217,1730967044488,-250.0,0.00032046,2]
[341537229,1730967044596,-500.0,0.00032047,2]
[341537232,1730967044612,-500.0,0.00032047,2]
[341537234,1730967044623,-500.0,0.00032047,2]
[341537236,1730967044632,-500.0,0.00032047,2]
[341537238,1730967044643,-151.0,0.00032082,120]
[341537240,1730967044654,-500.0,0.00032112,2]
[341537243,1730967044664,-1282.44870772,0.0003212,10]
[341537245,1730967044675,-500.0,0.00032123,2]
[341537247,1730967044688,-501.66936704,0.00032152,2]
[341537249,1730967044699,-875.81452509,0.00032169,2]
[341537252,1730967044710,-1000.0,0.00032201,2]
[341537254,1730967044719,-80.27657589,0.00032204,12]
[341538064,1730967276516,1169.27083333,0.00020841,2]
[341538065,1730967701005,150.8,0.00020841,2]
[341538067,1730967747000,175.477559,0.00013973,2]
[341538070,1730967888278,1169.27083333,0.00020841,2]
[341538134,1730968223405,164.492625,0.00013973,2]
[341538178,1730968232728,-300.0,0.00025,2]
[341538179,1730968232739,-16445.0293757,0.00025,2]
[341538190,1730968238950,-1795.19908081,0.00025,2]
[341538196,1730968240653,-498.67496657,0.00025,2]
[341538197,1730968240664,-428.74,0.00025,2]
[341538198,1730968240674,-153.0,0.00027504,2]
[341538199,1730968240684,-10000.0,0.0003,5]
[341538200,1730968240695,-4000.0,0.0003,7]
[341538201,1730968240705,-1169.27083333,0.0003,2]
[341538202,1730968240714,-1169.12274038,0.00031397,2]
[341538203,1730968240723,-500.0,0.00031497,2]
[341538204,1730968240733,-500.0,0.00031497,2]
[341538205,1730968240742,-500.0,0.00031497,2]
[341538206,1730968240751,-166.067,0.0003176,12]
[341538207,1730968240760,-500.0,0.00031771,2]
[341538208,1730968240769,-500.0,0.00031771,2]
[341538209,1730968240778,-1000.0,0.00032,120]
[341538210,1730968240790,-474.39065024,0.00032014,7]
[341538211,1730968240799,-500.0,0.00032014,2]
[341538212,1730968240810,-500.0,0.00032014,2]
[341538213,1730968240820,-500.0,0.00032014,2]
[341538214,1730968240829,-500.0,0.00032015,2]
[341538215,1730968240839,-500.0,0.00032015,2]
[341538216,1730968240850,-500.0,0.00032015,2]
[341538217,1730968240860,-504.30166872,0.00032015,2]
[341538218,1730968240871,-250.0,0.00032015,2]
[341538219,1730968240881,-171.60035617,0.00032015,2]
[341538220,1730968240893,-690.89,0.00032015,2]
[341538221,1730968240904,-500.0,0.00032015,2]
[341538222,1730968240914,-500.0,0.00032015,2]
[341538223,1730968240924,-500.0,0.00032015,2]
[341538224,1730968240934,-500.0,0.00032015,2]
[341538225,1730968240945,-500.0,0.00032015,2]
[341538226,1730968240956,-208.65315355,0.00032015,2]
[341538227,1730968240966,-500.0,0.00032015,2]
[341538228,1730968240975,-500.0,0.00032015,2]
[341538229,1730968240984,-500.0,0.00032015,2]
[341538230,1730968240994,-500.0,0.00032015,2]
[341538231,1730968241003,-500.0,0.00032015,2]
[341538232,1730968241014,-582.96,0.00032015,2]
[341538233,1730968241023,-7846.79676977,0.00032016,2]
[341538234,1730968241035,-500.0,0.00032045,2]
[341538235,1730968241045,-500.0,0.00032045,2]
[341538236,1730968241055,-1000.0,0.00032113,2]
[341538237,1730968241065,-607.2692147,0.00032139,2]
[341538238,1730968241076,-302.86420141,0.00032166,2]
[341538239,1730968241086,-1130.75470808,0.00032212,12]
[341538240,1730968241098,-151.0,0.00032255,7]
[341538241,1730968241108,-600.0,0.00032258,2]
[341538242,1730968241117,-500.0,0.00032258,2]
[341538243,1730968241127,-788.23307259,0.00032274,2]
[341538244,1730968241136,-1351.031111,0.00032278,7]
[341538245,1730968241146,-179.160871,0.00032279,2]
[341538246,1730968241155,-500.0,0.00032288,2]
[341538247,1730968241164,-500.0,0.00032288,2]
[341538248,1730968241174,-500.0,0.00032289,2]
[341538249,1730968241183,-478.66379639,0.00032289,2]
[341538250,1730968241193,-365.20754114,0.00032289,2]
[341538251,1730968241202,-690.89,0.00032289,2]
[341538252,1730968241211,-500.0,0.00032289,2]
[341538253,1730968241220,-500.0,0.00032289,2]
[341538254,1730968241229,-500.0,0.00032289,2]
[341538255,1730968241239,-500.0,0.00032289,2]
[341538256,1730968241249,-500.0,0.00032289,2]
[341538257,1730968241258,-500.0,0.00032289,2]
[341538258,1730968241267,-500.0,0.00032289,2]
[341538259,1730968241276,-500.0,0.00032289,2]
[341538260,1730968241285,-500.0,0.00032289,2]
[341538261,1730968241295,-500.0,0.00032289,2]
[341538262,1730968241305,-582.96,0.00032289,2]
[341538263,1730968241314,-1169.12274035,0.00032297,2]
[341538264,1730968241324,-15081.0,0.000323,20]
[341538265,1730968241333,-1828.52,0.000323,2]
[341538266,1730968241343,-150.112245,0.000323,18]
[341538267,1730968241353,-500.0,0.000323,38]
[341538268,1730968241362,-614.0,0.000323,2]
[341538269,1730968241373,-500.0,0.00032319,2]
[341538270,1730968241382,-500.0,0.00032319,2]
[341538271,1730968241391,-151.0,0.0003232,2]
[341538272,1730968241401,-500.0,0.0003232,2]
[341538273,1730968241411,-18140.865815,0.00032326,3]
[341538274,1730968241423,-509.49066277,0.00032327,12]
[341538275,1730968241433,-327.96,0.0003234,10]
[341538276,1730968241443,-273.3,0.0003234,10]
[341538277,1730968241454,-19907.0,0.0003235,20]
[341538278,1730968241464,-500.0,0.00032373,5]
[341538279,1730968241474,-208.56131927,0.00032373,2]
[341538280,1730968241485,-147790.1736406,0.00032374,20]
[341538281,1730968241496,-498.0,0.00032374,7]
[341538282,1730968241507,-2760.17939355,0.00032374,7]
[341538283,1730968241517,-614.15207277,0.00032374,5]
[341538284,1730968241528,-169.71256312,0.00032374,5]
[341538285,1730968241538,-72589.57399516,0.00032374,7]
[341538300,1730968243807,-227.75,0.00032364,10]
[341538301,1730968243817,-138245.60488651,0.00032374,7]
[341538302,1730968244018,-24622.50197946,0.00032374,7]
[341538325,1730968501183,1169.27083333,0.00020841,2]
[341538327,1730968726772,175.058661,0.00013973,2]
[341538328,1730969113894,1169.27083333,0.00020841,2]
[341538437,1730969432021,-1131.68674516,0.00029,2]
[341539202,1730969443021,-37.58408817,0.00029,2]
[341539205,1730969443036,-178.200206,0.00029652,2]
[341539207,1730969443047,-175.0,0.00029899,2]
[341539209,1730969443061,-300.0,0.00029899,2]
[341539211,1730969443076,-3024.32495502,0.000299,2]
[341539214,1730969443087,-1000.0,0.000299,2]
[341539216,1730969443099,-938.35707145,0.00030204,2]
[341539222,1730969443153,-4061.44272255,0.00030204,2]
[341539225,1730969443165,-454.6035365,0.00031315,30]
[341539227,1730969443175,-1000.0,0.00032,120]
[341539229,1730969443187,-2562.8013161,0.00032,2]
[341539485,1730969445880,-5458.0,0.00032,2]
[341540562,1730969527956,173.271138,0.00013973,2]
[341540568,1730969728507,1169.27083333,0.00020841,2]
[341540582,1730970033959,166.110508,0.00013973,2]
[341540585,1730970070171,674.7517956,0.0001,2]
[341540588,1730970340856,1169.27083333,0.00020841,2]
[341540613,1730970532741,173.271138,0.00013973,2]
[341540636,1730970632062,-166.176,0.0003097,7]
[341540637,1730970632072,-307.37858101,0.00032,2]
[341540736,1730970638263,-59322.86432534,0.00032,2]
[341540794,1730970640121,-805.81376793,0.00032,2]
[341540877,1730970643322,-2324.89515139,0.00032,2]